Cogmind - Beta 9.3 @@@ ROGUE MODE // 2019.12.21 @ 21:56:00 // Winter2019/RPGLIKE Player: INSYN Result: Destroyed by S-10 Pest with Light Assault Rifle Performance ------------- Evolutions (2) 1000 Regions Visited (3) 600 Robots Destroyed (24) 120 Value Destroyed (563) 563 Prototype IDs (0) 0 Alien Tech Used (0) 0 Bonus (0) 0 TOTAL SCORE: 2283 Bonus ------- None Cogmind --------- Core Integrity 0/600 Matter 275/300 Energy 249/250 System Corruption 0% Temperature Cool (0) Movement Walking (120) Location -8/Materials Parts ------- > --- POWER (1) -------- Ion Engine > --- PROPULSION (2) --- Aluminum Leg Aluminum Leg > --- UTILITY (1) ------ Visual Processing Unit > --- WEAPON (2) ------- Assault Rifle Assault Rifle > --- INVENTORY (1) ---- Assault Rifle Peak State ------------ > --- POWER ------------ Ion Engine > --- PROPULSION ------- Aluminum Leg Aluminum Leg > --- UTILITY ---------- Visual Processing Unit > --- WEAPON ----------- Assault Rifle Light Assault Rifle > --- INVENTORY -------- Assault Rifle [Rating: 7] Favorites ----------- Power Ion Engine Engine Ion Engine Propulsion Aluminum Leg Leg Aluminum Leg Utility Visual Processing Unit Device Cooling System Processor Visual Processing Unit Weapon Assault Rifle Ballistic Gun Assault Rifle Build | -11 -10 -9 -8 ------- Run | Scr Mat Mat Mat Slots Evolved 2 | 1 . 1 . Power . | . . . . Propulsion 1 | 1 . . . Utility . | . . . . Weapon 1 | . . 1 . Parts Attached 9 | 4 3 2 . Power 1 | 1 . . . Engine 1 | 1 . . . Core . | . . . . Reactor . | . . . . Propulsion 2 | 2 . . . Treads . | . . . . Leg 2 | 2 . . . Wheel . | . . . . Hover . | . . . . Flight . | . . . . Utility 2 | . 2 . . Device 1 | . 1 . . Storage . | . . . . Processor 1 | . 1 . . Hackware . | . . . . Protection . | . . . . Artifact . | . . . . Weapon 4 | 1 1 2 . Energy Gun . | . . . . Energy Cannon . | . . . . Ballistic Gun 4 | 1 1 2 . Ballistic Cannon . | . . . . Launcher . | . . . . Special Weapon . | . . . . Impact Weapon . | . . . . Slashing Weapon . | . . . . Piercing Weapon . | . . . . Special Melee Weapon . | . . . . Unidentified Prototypes . | . . . . Parts Lost . | . . . . Power . | . . . . Propulsion . | . . . . Utility . | . . . . Weapon . | . . . . Highest Loss Streak . | . . . . Average Slot Usage (%) 97 | . 99 91 100 Engine 17 | . 20 16 16 Leg 36 | . 40 33 33 Device 6 | . 14 . . Processor 11 | . 5 16 16 Ballistic Gun 24 | . 20 24 33 Naked Turns . | . . . . Heaviest Build 9 | 6 8 9 9 Greatest Support 20 | 10 20 20 20 Greatest Overweight (x) 1 | 1 . . . Average Overweight (x) . | . . . . Largest Inventory Capacity 1 | . . 1 1 Average Capacity . | . . . 1 Most Carried 1 | . . 1 1 Average Carried . | . . . 1 Final Capacity 1 | . . 1 1 Final Carried 1 | . . 1 1 Class Distribution -------------------- 100% | Mutant Dominant Class ---------------- Mutant | -10/Materials Mutant | -9/Materials Mutant | -8/Materials Resources | -11 -10 -9 -8 ----------- Run | Scr Mat Mat Mat Matter Collected 542 | 240 82 50 170 Remotely . | . . . . Salvage Created 728 | . 233 141 354 Parts 52 | . 25 10 17 Haulers Intercepted . | . . . . Recyclers Shooed 1 | . 1 . . Parts Field Recycled . | . . . . Retrieved Matter . | . . . . Parts Self-Destructed . | . . . . Prevented . | . . . . Kills | -11 -10 -9 -8 ------- Run | Scr Mat Mat Mat Combat Hostiles Destroyed 19 | . 10 3 6 Guns 19 | . 10 3 6 Classes Destroyed 4 | . 3 . 1 Builder 1 | . . . 1 Watcher 4 | . 3 1 . Swarmer 10 | . 9 . 1 Grunt 9 | . 1 3 5 Best Kill Streak 4 | . 4 2 3 Combat Bots Only 4 | . 4 2 3 Max Kills in Single Turn 2 | . 1 2 1 Gunslinging 1 | . . 1 . Exploded . | . . . . Melee . | . . . . Uniques/NPCs Destroyed . | . . . . Combat | -11 -10 -9 -8 -------- Run | Scr Mat Mat Mat Damage Taken 1190 | . 417 83 690 Core 958 | . 336 68 554 Absorbed by Shields . | . . . . Redirected to Core 771 | . 264 48 459 Core Remaining (%) 86 | 100 75 83 . Volleys Fired 111 | . 61 21 29 Largest 2 | . 1 2 2 Hottest 40 | . 20 40 40 Shots Fired 143 | . 61 27 55 Gun 143 | . 61 27 55 Cannon . | . . . . Launcher . | . . . . Special . | . . . . Kinetic 143 | . 61 27 55 Thermal . | . . . . Explosive . | . . . . Electromagnetic . | . . . . Robot Hit Streak 35 | . 10 18 35 Robot Miss Streak 2 | . 2 1 2 Penetration Max . | . . . . Secondary Targets 4 | . . 1 3 Max Gunslinging Chain 1 | . . 1 1 Shots Hit Robots 113 | . 44 22 47 Core Hits 47 | . 20 8 19 Critical Hits . | . . . . Critical Kills . | . . . . Critical Parts Destroyed . | . . . . Melee Attacks . | . . . . Impact . | . . . . Slashing . | . . . . Piercing . | . . . . Sneak Attacks . | . . . . Combat Hostiles . | . . . . Follow-up Attacks . | . . . . Damage Inflicted 1218 | . 365 206 647 Guns 1218 | . 365 206 647 Cannons . | . . . . Explosions . | . . . . Melee . | . . . . Ramming . | . . . . Kinetic 1218 | . 365 206 647 Thermal . | . . . . Explosive . | . . . . Electromagnetic . | . . . . Impact . | . . . . Slashing . | . . . . Piercing . | . . . . Highest Corruption . | . . . . Average Corruption . | . . . . Corruption Purged . | . . . . Overload Shots . | . . . . Overflow Damage . | . . . . Projectiles . | . . . . Explosions . | . . . . Melee . | . . . . Knockbacks . | . . . . Impact . | . . . . Kinetic . | . . . . Secondary . | . . . . Self-Inflicted Damage . | . . . . Shots . | . . . . Rammed . | . . . . Targets Rammed . | . . . . Kicked . | . . . . Crushed . | . . . . Highest Temperature 16 | . . 6 16 Average Temperature 5 | . . 6 5 Received Heat Transfer 381 | . 36 48 297 Siege Activations . | . . . . Robots Corrupted . | . . . . Combat Hostiles . | . . . . Parts Fried . | . . . . Impact Corruptions . | . . . . Robots Melted . | . . . . Combat Hostiles . | . . . . Parts Melted . | . . . . Heat Transferred . | . . . . Parts Sabotaged . | . . . . Parts Stolen . | . . . . Parts Stripped . | . . . . Power Chain Reactions . | . . . . Missiles Intercepted . | . . . . Alert | -11 -10 -9 -8 ------- Run | Scr Mat Mat Mat Peak Influence 332 | . 332 278 322 Average Influence 169 | . 169 192 185 Maximum Alert Level 1 | . 1 1 1 Low Security (%) 52 | 100 46 55 45 Level 1 47 | . 53 44 54 Level 2 . | . . . . Level 3 . | . . . . Level 4 . | . . . . Level 5 . | . . . . High Security . | . . . . Max Security . | . . . . Squads Dispatched 6 | . 1 4 1 Investigation 2 | . . 1 1 Extermination . | . . . . Reinforcement 4 | . 1 3 . Assault . | . . . . Garrison . | . . . . Intercept . | . . . . Construction Impeded . | . . . . Haulers Reinforced . | . . . . Stealth | -11 -10 -9 -8 --------- Run | Scr Mat Mat Mat Distress Signals 5 | . 1 2 2 Communications Jammed . | . . . . Distress Signals . | . . . . Times Spotted 41 | . 19 8 14 Peak Tracking Total 8 | . 6 3 8 Tactical Retreats 1 | . 1 . . Traps | -11 -10 -9 -8 ------- Run | Scr Mat Mat Mat Traps Triggered . | . . . . Indirectly . | . . . . Trap Hack Attempts . | . . . . Triggered . | . . . . Disarmed . | . . . . Reprogrammed . | . . . . Reused . | . . . . Traps Extracted . | . . . . Installed . | . . . . Triggered . | . . . . Machines | -11 -10 -9 -8 ---------- Run | Scr Mat Mat Mat Machines Disabled 2 | . . 1 1 Max in Single Turn 1 | . . 1 1 Machines Sabotaged . | . . . . Garrisons Compromised . | . . . . Overloaded Fab Kills . | . . . . Fab Network Shutdowns . | . . . . Hacking | -11 -10 -9 -8 --------- Run | Scr Mat Mat Mat Machines Accessed 6 | . 4 1 1 Terminals 6 | . 4 1 1 Fabricators . | . . . . Repair Stations . | . . . . Recycling Units . | . . . . Scanalyzers . | . . . . Garrison Access . | . . . . Total Hacks 14 | . 8 3 3 Successful 7 | . 4 2 1 Failed 6 | . 4 . 2 Catastrophic . | . . . . Database Lockouts 1 | . . 1 . Manual . | . . . . Terminals 14 | . 8 3 3 Fabricators . | . . . . Repair Stations . | . . . . Recycling Units . | . . . . Scanalyzers . | . . . . Garrison Access . | . . . . Terminal Hacks 7 | . 4 2 1 Record 4 | . 1 2 1 Robot Analysis 1 | . 1 . . Alert Level 1 | . 1 . . Recall Investigation 1 | . 1 . . Fabricator Hacks . | . . . . Repair Station Hacks . | . . . . Recycling Unit Hacks . | . . . . Scanalyzer . | . . . . Garrison Access Hacks . | . . . . Unauthorized Hacks . | . . . . Terminals . | . . . . Fabricators . | . . . . Repair Stations . | . . . . Recycling Units . | . . . . Scanalyzers . | . . . . Garrison Access . | . . . . Data Cores Recovered . | . . . . Used . | . . . . Hacking Detections 4 | . 3 . 1 Full Trace Events 1 | . . . 1 Feedback Events . | . . . . Feedback Blocked . | . . . . Robot Schematics Acquired . | . . . . Robots Built . | . . . . Matter . | . . . . Time . | . . . . Total Robot Build Rating . | . . . . Part Schematics Acquired . | . . . . Parts Built . | . . . . Matter . | . . . . Time . | . . . . Total Part Build Rating . | . . . . Parts Repaired . | . . . . Time . | . . . . Parts Recycled . | . . . . Recycled Matter . | . . . . Retrieved Matter . | . . . . Retrieved Components . | . . . . Parts Scanalyzed . | . . . . Part Schematics Acquired . | . . . . Parts Damaged . | . . . . Bothacking | -11 -10 -9 -8 ------------ Run | Scr Mat Mat Mat Used RIF Installer . | . . . . Robots Hacked . | . . . . Non-combat . | . . . . Combat . | . . . . Robot Hacks Applied . | . . . . Relay Couplers Released . | . . . . Robots Rewired . | . . . . Allies Hacked . | . . . . Hacks Repelled . | . . . . Allies | -11 -10 -9 -8 -------- Run | Scr Mat Mat Mat Total Allies . | . . . . Largest Group . | . . . . Highest-Rated Group . | . . . . Highest-Rated Ally . | . . . . Total Orders . | . . . . Ally Attacks . | . . . . Total Damage . | . . . . Kills . | . . . . Allies Corrupted . | . . . . Allies Melted . | . . . . Intel | -11 -10 -9 -8 ------- Run | Scr Mat Mat Mat Robot Analysis Total 1 | . 1 . . Derelict Logs Recovered . | . . . . Drone Launches . | . . . . Drone Recoveries . | . . . . Exploration | -11 -10 -9 -8 ------------- Run | Scr Mat Mat Mat Turns Passed 892 | 54 388 255 195 Spaces Moved 483 | 43 213 154 73 Core 6 | 6 . . . Treads . | . . . . Legs 477 | 37 213 154 73 Wheels . | . . . . Hover . | . . . . Flight . | . . . . Fastest Speed 50 | 50 120 120 120 Average Speed 119 | 113 120 120 120 Slowest Speed 120 | 120 120 120 120 Overloaded Moves . | . . . . Propulsion Burnouts . | . . . . Robots Hopped . | . . . . Cave-ins Triggered . | . . . . Exploration Rate (%) 17 | 3 37 20 11 Regions Visited 3 Branch Regions . Pre-discovered Areas . | . . . . Known Exits Taken . | . . . . Unknown Exits Taken 3 | 1 1 1 . Scrap Searched . | . . . . Spaces Dug . | . . . . Terrain Destroyed . | . . . . Melee . | . . . . Projectile . | . . . . AOE . | . . . . Actions | -11 -10 -9 -8 --------- Run | Scr Mat Mat Mat Total 668 | 46 296 199 127 Wait 48 | . 9 16 23 Move 480 | 42 212 153 73 Hop . | . . . . Pick Up 1 | . . 1 . Fast Attach 8 | 4 2 2 . Attach . | . . . . Detach . | . . . . Swap 1 | . 1 . . Drop 3 | . 2 1 . Fire 111 | . 61 21 29 Melee . | . . . . Ram . | . . . . Kick . | . . . . Crush . | . . . . Escape Stasis . | . . . . Rewire . | . . . . Trap . | . . . . Miscellaneous 16 | . 9 5 2 Route ------- -11/Scrapyard -10/Materials -9/Materials -8/Materials History --------- Turn | Location | Event 1 | -11/Scrapyard | Upgraded with Propulsion slot (x1) 16 | -11/Scrapyard | Discovered new exit (range 16) 55 | -11/Scrapyard | Entered Materials 309 | -10/Materials | Build established: Mutant 368 | -10/Materials | Discovered new exit (range 17) 443 | -10/Materials | Entered another Materials area 445 | -9/Materials | Reached level 2 452 | -9/Materials | Upgraded with Weapon slot (x1) 531 | -9/Materials | Central database locked down 584 | -9/Materials | Reached level 3 665 | -9/Materials | Discovered new exit (range 10) 698 | -9/Materials | Entered another Materials area 700 | -8/Materials | Reached level 4 852 | -8/Materials | Core integrity fell below 50% 874 | -8/Materials | Core integrity fell below 20% 893 | -8/Materials | Destroyed by S-10 Pest with Light Assault Rifle Last Messages --------------- 00822_ G-47 Trooper destroyed. 00835_ K-01 Serf collects debris. 00856_ Electrolysis Chamber disabled. 00859_ G-50 Soldier destroyed. 00859_ Switching to secondary target: G-47 Trooper. 00860_ K-01 Serf collects debris. 00874_ Destroyed Lgt. Nuclear Core. 00874_ G-47 Trooper destroyed. 00875_ K-01 Serf collects debris. 00876_ K-01 Serf cleans the Electrolysis Chamber. 00877_ Acquired 98 matter. 00879_ K-01 Serf collects debris. 00879_ W-25 Informer sends out distress signal. 00882_ K-01 Serf collects debris. 00883_ Electrolysis Chamber disabled. 00886_ S-10 Pest destroyed. 00886_ Switching to secondary target: S-10 Pest. 00887_ K-01 Serf collects debris. 00891_ R-06 Scavenger collects Carbon-fiber Leg. 00893_ K-01 Serf collects debris. Map ----- +----------------------------------------------------+ | | | | | ?????????????????????????????????????????????????? | | ?????????????????????????????????????????????????? | | ?????????????????????????????????????????????????? | | ?????????????????????????????????????????????????? | | ?################????????????????????????????????? | | ?# #????????????????????????????????? | | ?# #######??????????????????????????? | | ?# #??????????????????????????? | | #####+########+###### #??????????????????????????? | | # =# ## #??????????????????????????? | | # T """ # ## #??????????????????????????? | | # """ # ## #??????????????????????????? | | # """ # ## #??????????????????????????? | | #! # ## #??????????????????????????? | | # # ## #??????????????????????????? | | # !=! # ## #??????????????????????????? | | # !=! # ## #??????????????????????????? | | # !=! ############ #??????????????????????????? | | ##########??????????# #?????###########??????????? | | ????????????????????# #?????# ^ ???????????? | | ????????????????????# #?????# ????????????? | | ??????????????#######+####### ??????????????? | | ??????????????# *%=s%# #???????????????? | | ??????????????# s@s #!= #???????????????? | | ??????????????# """ "" "k"r# % #???????????????? | | ??????????????# """ """ """%w% #???????????????? | | ??????????????# """ """ """!#% #???????????????? | | ??????????????# w # #???????????????? | | ??????????????#+############# #???????????????? | | ???????????????????????????? #???????????????? | | ??????????????????????????? ??????????????? | | ??????????????????????????? ?????????????? | | ?????????????????????????? ????????????? | | ?????????????????????????### ???????????? | | ???????????????????????????### ??????????? | | ?????????????????????????????# ?????????? | | ?????????????????????????????# ##########????????? | | ?????????????????????????????# #?????????????????? | | ?????????????????????????????# #?????????????????? | | ?????????????????????????????? ??????????????????? | | ?????????????????????????????? ??????????????????? | | ?????????????????????????????? ??????????????????? | | ?????????????????????????????????????????????????? | | ?????????????????????????????????????????????????? | | ?????????????????????????????????????????????????? | | ?????????????????????????????????????????????????? | | ?????????????????????????????????????????????????? | | ?????????????????????????????????????????????????? | +----------------------------------------------------+ Best States ------------- Heat Dissipation 47 Energy Generation 10 Energy Capacity 250 Matter Stores 300 Matter Capacity 300 Sight Range 18 Terrain Scan Density 10 Evasion (%) 40 Item Schematics ----------------- None Robot Schematics ------------------ None Fabricated ------------ Nothing Alien Tech Used ----------------- None Achievements -------------- None Challenges ------------ None RPGLIKE | -11 -10 -9 -8 --------- Run | Scr Mat Mat Mat Levels Raised 3 | . . 2 1 XP Earned 8570 | 3000 1335 1960 2275 XP Spent 5850 | 2700 . 3150 . Upgrades 11 | 5 . 6 . Propulsion Slot 1 | 1 . . . Weapon Slot 1 | . . 1 . Inventory Capacity 1 | . . 1 . Ranged Accuracy 6 | 4 . 2 . KI Damage % 2 | . . 2 . Protomatter Created 161 | . 62 40 59 Integrity Restored 354 | . 186 120 48 Core 354 | . 186 120 48 Protomatter Decayed 43 | . . . 43 Game ------ Seed ImpactMagneticCapacitor Manual? 0 Play Time 00:13:11 Cumulative 6.2 hours Start 2019.12.21 @ 21:44:35 End 2019.12.21 @ 21:56:00 Sessions 1 Manual Loads 0 Difficulty Rogue Special Mode Winter2019/RPGLIKE Game No. 13 Rogue 13 Adventurer 0 Explorer 0 Win Type - Total 0 Types 0/0/0/0/0/0/0 Lore% 5 Gallery% 11 Achievement% 11 Wizard Run 0 Options --------- ASCII 0 Keyboard 0 Movement Mouse Keybinds 0 Fullscreen 2 Font 18/SmallcapsGlow Map View 76x50 Tactical HUD 1 Map Filters NONE Filters NONE Steam 1 RUN: dacd80e2-e648-4c56-abdc-ea6b6721d0d4